fUST/lending_fUST_20240222
["ID","MTS","AMOUNT","RATE_DAILY","PERIOD"]
[314710265,1708536649038,-153.0,0.000201,2]
[314710266,1708536649047,-153.0,0.000201,2]
[314710267,1708536649057,-153.0,0.000201,2]
[314710268,1708536649068,-153.0,0.000201,2]
[314710269,1708536649077,-153.0,0.000201,2]
[314710270,1708536649087,-153.0,0.000201,2]
[314710271,1708536649097,-153.0,0.000201,2]
[314710272,1708536649106,-153.0,0.000201,2]
[314710273,1708536649115,-153.0,0.000201,2]
[314710274,1708536649125,-153.0,0.000201,2]
[314710275,1708536649135,-153.0,0.000201,2]
[314710276,1708536649144,-153.0,0.000201,2]
[314710277,1708536649154,-153.0,0.000201,2]
[314710278,1708536649164,-153.0,0.000201,2]
[314710279,1708536649174,-153.0,0.000201,2]
[314710280,1708536649183,-153.0,0.000201,2]
[314710281,1708536649193,-153.0,0.000201,2]
[314710282,1708536649203,-153.0,0.000201,2]
[314710283,1708536649213,-153.0,0.000201,2]
[314710284,1708536649223,-153.0,0.000201,2]
[314710285,1708536649233,-153.0,0.000201,2]
[314710286,1708536649244,-153.0,0.000201,2]
[314710287,1708536649254,-153.0,0.000201,2]
[314710288,1708536649265,-153.0,0.000201,2]
[314710289,1708536649276,-153.0,0.000201,2]
[314710290,1708536649290,-153.0,0.000201,2]
[314710291,1708536649300,-153.0,0.000201,2]
[314710292,1708536649314,-153.0,0.000201,2]
[314710293,1708536649327,-153.0,0.000201,2]
[314710294,1708536649337,-153.0,0.000201,2]
[314710295,1708536649346,-153.0,0.000201,2]
[314710296,1708536649356,-153.0,0.000201,2]
[314710297,1708536649366,-153.0,0.000201,2]
[314710298,1708536649377,-153.0,0.000201,2]
[314710299,1708536649387,-153.0,0.000201,2]
[314710300,1708536649396,-153.0,0.000201,2]
[314710301,1708536649405,-153.0,0.000201,2]
[314710302,1708536649414,-153.0,0.000201,2]
[314710303,1708536649424,-153.0,0.000201,2]
[314710304,1708536649433,-316.9651994,0.000201,2]
[314710305,1708536649443,-200.4553765,0.000201,2]
[314710306,1708536649452,-153.0,0.000201,2]
[314710307,1708536649462,-153.0,0.000201,2]
[314710308,1708536649471,-153.0,0.000201,2]
[314710309,1708536649480,-153.0,0.000201,2]
[314710310,1708536649489,-153.0,0.000201,2]
[314710311,1708536649498,-153.0,0.000201,2]
[314710312,1708536649508,-200.4553765,0.000201,2]
[314710313,1708536649517,-153.0,0.000201,2]
[314710314,1708536649526,-153.0,0.000201,2]
[314710315,1708536649536,-153.0,0.000201,2]
[314710316,1708536649545,-200.4553765,0.000201,2]
[314710317,1708536649554,-153.0,0.000201,2]
[314710318,1708536649563,-153.0,0.000201,2]
[314710319,1708536649573,-153.0,0.000201,2]
[314710320,1708536649582,-153.0,0.000201,2]
[314710321,1708536649591,-251.4380664,0.000201,2]
[314710322,1708536649600,-200.4553765,0.000201,2]
[314710323,1708536649609,-153.0,0.000201,2]
[314710324,1708536649619,-153.0,0.000201,2]
[314710325,1708536649628,-153.0,0.000201,2]
[314710326,1708536649637,-153.0,0.000201,2]
[314710327,1708536649646,-200.4553765,0.000201,2]
[314710328,1708536649656,-231.7498546,0.000201,2]
[314710329,1708536649666,-153.0,0.000201,2]
[314710330,1708536649675,-200.4553765,0.000201,2]
[314710331,1708536649685,-153.0,0.000201,2]
[314710332,1708536649694,-153.0,0.000201,2]
[314710333,1708536649703,-153.0,0.000201,2]
[314710334,1708536649713,-200.4553765,0.000201,2]
[314710335,1708536649724,-153.0,0.000201,2]
[314710336,1708536649733,-200.4553765,0.000201,2]
[314710337,1708536649743,-300.0,0.0002012,2]
[314710338,1708536649752,-200.4553765,0.000202,2]
[314710339,1708536649763,-200.4553765,0.000202,2]
[314710340,1708536649774,-10686.02,0.00020238,2]
[314710341,1708536649784,-500.0,0.00020238,2]
[314710342,1708536649793,-649.43,0.00020238,2]
[314710343,1708536649804,-10444.46,0.00020238,2]
[314710344,1708536649814,-500.0,0.00020238,2]
[314710345,1708536649823,-948.19,0.00020238,2]
[314710346,1708536649832,-923.96,0.00020238,2]
[314710347,1708536649842,-1533.4,0.00020238,2]
[314710348,1708536649853,-1202.52,0.00020238,2]
[314710349,1708536649862,-500.0,0.00020238,2]
[314710350,1708536649873,-500.0,0.00020238,2]
[314710351,1708536649882,-500.0,0.00020238,2]
[314710352,1708536649890,-500.0,0.00020238,2]
[314710353,1708536649900,-549.21,0.00020238,2]
[314710354,1708536649909,-500.0,0.00020239,2]
[314710355,1708536649918,-500.0,0.00020239,2]
[314710356,1708536649926,-776.27,0.00020239,2]
[314710357,1708536649935,-500.0,0.00020239,2]
[314710358,1708536649944,-500.0,0.00020239,2]
[314710359,1708536649953,-151.0,0.00020239,2]
[314710360,1708536649962,-603.47952692,0.00020239,2]
[314710361,1708536649971,-551.96381553,0.00020239,2]
[314710362,1708536649979,-539.37035199,0.00020239,2]
[314710363,1708536649989,-501.19,0.00020239,2]
[314710364,1708536649998,-888.05,0.00020239,2]
[314710365,1708536650007,-669.84,0.00020239,2]
[314710366,1708536650016,-500.0,0.00020239,2]
[314710367,1708536650025,-500.0,0.00020239,2]
[314710368,1708536650035,-500.0,0.00020239,2]
[314710369,1708536650044,-1131.23,0.00020239,2]
[314710370,1708536650053,-500.0,0.00020239,2]
[314710371,1708536650063,-500.0,0.00020239,2]
[314710372,1708536650073,-500.0,0.00020239,2]
[314710373,1708536650082,-500.0,0.00020239,2]
[314710374,1708536650091,-500.0,0.00020239,2]
[314710375,1708536650100,-1306.59,0.00020239,2]
[314710376,1708536650109,-500.0,0.00020239,2]
[314710377,1708536650118,-500.0,0.00020239,2]
[314710378,1708536650128,-1641.48,0.00020239,2]
[314710379,1708536650137,-500.0,0.00020239,2]
[314710380,1708536650146,-500.0,0.00020239,2]
[314710381,1708536650155,-500.0,0.00020239,2]
[314710382,1708536650165,-500.0,0.00020239,2]
[314710383,1708536650174,-500.0,0.00020239,2]
[314710384,1708536650184,-7161.62,0.00020239,2]
[314710385,1708536650193,-500.0,0.00020239,2]
[314710386,1708536650203,-1051.15,0.00020239,2]
[314710387,1708536650213,-4026.43,0.00020239,2]
[314710388,1708536650223,-5161.09,0.00020239,2]
[314710389,1708536650232,-500.0,0.00020239,2]
[314710390,1708536650241,-649.09,0.00020239,2]
[314710391,1708536650251,-3825.46,0.00020239,2]
[314710392,1708536650260,-500.0,0.00020239,2]
[314710393,1708536650270,-500.0,0.00020239,2]
[314710394,1708536650280,-687.46,0.00020239,2]
[314710395,1708536650290,-500.0,0.00020239,2]
[314710396,1708536650302,-2247.36,0.00020239,2]
[314710397,1708536650312,-500.0,0.00020239,2]
[314710398,1708536650321,-1581.28,0.00020239,2]
[314710399,1708536650330,-500.0,0.00020239,2]
[314710400,1708536650455,-310.0,0.00020239,2]
[314710401,1708536650481,-500.0,0.00020239,2]
[314710402,1708536650490,-500.0,0.00020239,2]
[314710403,1708536650499,-3151.98,0.00020239,2]
[314710404,1708536650508,-1430.48,0.00020239,2]
[314710405,1708536650518,-500.0,0.00020239,2]
[314710406,1708536650527,-500.0,0.00020239,2]
[314710407,1708536650536,-500.0,0.00020239,2]
[314710408,1708536650545,-500.0,0.00020239,2]
[314710409,1708536650554,-729.42,0.00020239,2]
[314710410,1708536650563,-254.14851619,0.00020239,2]
[314710411,1708536650573,-500.0,0.00020239,2]
[314710412,1708536650582,-500.0,0.00020239,2]
[314710413,1708536650592,-500.0,0.00020239,2]
[314710414,1708536650601,-500.0,0.00020239,2]
[314710415,1708536650611,-500.0,0.00020239,2]
[314710416,1708536650620,-500.0,0.00020239,2]
[314710417,1708536650630,-500.0,0.00020239,2]
[314710418,1708536650639,-2522.35,0.00020239,2]
[314710419,1708536650648,-500.0,0.00020239,2]
[314710420,1708536650657,-500.0,0.00020239,2]
[314710421,1708536650666,-585.0,0.0002024,2]
[314710422,1708536650675,-2489.72,0.0002024,2]
[314710423,1708536650686,-1255.74,0.0002024,2]
[314710424,1708536650696,-534.78,0.0002024,2]
[314710425,1708536650705,-3052.78,0.0002024,2]
[314710426,1708536650715,-500.0,0.0002024,2]
[314710427,1708536650724,-500.0,0.0002024,2]
[314710428,1708536650734,-500.0,0.00020241,2]
[314710429,1708536650744,-500.0,0.00020241,2]
[314710430,1708536650753,-500.0,0.00020241,2]
[314710431,1708536650763,-500.0,0.00020241,2]
[314710432,1708536650772,-500.0,0.00020241,2]
[314710433,1708536650782,-500.0,0.00020241,2]
[314710434,1708536650791,-1470.6,0.00020241,2]
[314710435,1708536650801,-500.0,0.00020241,2]
[314710436,1708536650810,-500.0,0.00020241,2]
[314710437,1708536650819,-500.0,0.00020241,2]
[314710438,1708536650828,-500.0,0.00020241,2]
[314710439,1708536650838,-500.0,0.00020241,2]
[314710440,1708536650847,-500.0,0.00020241,2]
[314710441,1708536650856,-500.0,0.00020241,2]
[314710442,1708536650865,-500.0,0.00020241,2]
[314710443,1708536650874,-500.0,0.00020241,2]
[314710444,1708536650883,-500.0,0.00020241,2]
[314710445,1708536650892,-500.0,0.00020241,2]
[314710446,1708536650901,-500.0,0.00020241,2]
[314710447,1708536650910,-500.0,0.00020241,2]
[314710448,1708536650920,-500.0,0.00020241,2]
[314710449,1708536650929,-500.0,0.00020241,2]
[314710450,1708536650938,-500.0,0.00020241,2]
[314710451,1708536650947,-670.76,0.00020241,2]
[314710452,1708536650956,-500.0,0.00020241,2]
[314710453,1708536650965,-500.0,0.00020241,2]
[314710454,1708536650974,-500.0,0.00020241,2]
[314710455,1708536650984,-200.4553765,0.00020247,2]
[314710456,1708536650992,-200.4553765,0.00020247,2]
[314710457,1708536651002,-200.4553765,0.00020247,2]
[314710458,1708536651011,-200.4553765,0.00020247,2]
[314710459,1708536651020,-200.4553765,0.00020247,2]
[314710460,1708536651030,-200.4553765,0.00020247,2]
[314710461,1708536651041,-200.4553765,0.00020247,2]
[314710462,1708536651050,-200.4553765,0.00020247,2]
[314710463,1708536651060,-200.4553765,0.00020247,2]
[314710464,1708536651069,-200.4553765,0.00020247,2]
[314710465,1708536651078,-200.4553765,0.00020247,2]
[314710466,1708536651088,-200.4553765,0.00020247,2]
[314710467,1708536651097,-200.4553765,0.00020247,2]
[314710468,1708536651106,-200.4553765,0.00020247,2]
[314710469,1708536651115,-200.4553765,0.00020247,2]
[314710470,1708536651125,-200.4553765,0.00020247,2]
[314710471,1708536651134,-200.4553765,0.00020247,2]
[314710472,1708536651143,-200.4553765,0.00020247,2]
[314710473,1708536651152,-200.4553765,0.00020247,2]
[314710474,1708536651161,-200.4553765,0.00020247,2]
[314710475,1708536651170,-200.4553765,0.00020247,2]
[314710476,1708536651180,-200.4553765,0.00020247,2]
[314710477,1708536651189,-200.4553765,0.00020247,2]
[314710478,1708536651198,-200.4553765,0.00020247,2]
[314710479,1708536651208,-200.4553765,0.00020247,2]
[314710480,1708536651217,-200.4553765,0.00020247,2]
[314710481,1708536651227,-200.4553765,0.00020247,2]
[314710482,1708536651236,-200.4553765,0.00020247,2]
[314710483,1708536651245,-200.4553765,0.00020247,2]
[314710484,1708536651255,-200.4553765,0.00020247,2]
[314710485,1708536651264,-300.0,0.00020277,2]
[314710486,1708536651273,-153.0,0.00020411,2]
[314710487,1708536651284,-153.0,0.00020411,2]
[314710488,1708536651293,-153.0,0.00020411,2]
[314710489,1708536651305,-153.0,0.00020411,2]
[314710490,1708536651314,-153.0,0.00020411,2]
[314710491,1708536651323,-153.0,0.00020411,2]
[314710492,1708536651334,-153.0,0.00020411,2]
[314710493,1708536651343,-153.0,0.00020411,2]
[314710494,1708536651352,-153.0,0.00020411,2]
[314710495,1708536651361,-153.0,0.00020411,2]
[314710496,1708536651370,-153.0,0.00020411,2]
[314710497,1708536651379,-153.0,0.00020411,2]
[314710498,1708536651389,-153.0,0.00020411,2]
[314710499,1708536651398,-153.0,0.00020411,2]
[314710500,1708536651407,-153.0,0.00020411,2]
[314710501,1708536651416,-153.0,0.00020411,2]
[314710502,1708536651426,-153.0,0.00020411,2]
[314710503,1708536651435,-153.0,0.00020411,2]
[314710504,1708536651444,-1810.63670895,0.00020414,2]
[314710505,1708536651454,-300.0,0.00020433,2]
[314710506,1708536651463,-227.097676,0.000205,2]
[314710507,1708536651472,-10686.02,0.00020512,2]
[314710508,1708536651482,-500.0,0.00020512,2]
[314710509,1708536651491,-649.43,0.00020512,2]
[314710510,1708536651500,-10444.46,0.00020512,2]
[314710511,1708536651510,-500.0,0.00020512,2]
[314710512,1708536651519,-948.19,0.00020512,2]
[314710513,1708536651529,-923.96,0.00020512,2]
[314710514,1708536651540,-1533.4,0.00020512,2]
[314710515,1708536651549,-1202.52,0.00020512,2]
[314710516,1708536651558,-500.0,0.00020512,2]
[314710517,1708536651567,-500.0,0.00020512,2]
[314710518,1708536651576,-500.0,0.00020512,2]
[314710519,1708536651585,-500.0,0.00020512,2]
[314710520,1708536651595,-549.21,0.00020512,2]
[314710521,1708536651604,-500.0,0.00020513,2]
[314710522,1708536651614,-500.0,0.00020513,2]
[314710523,1708536651623,-776.27,0.00020513,2]
[314710524,1708536651632,-500.0,0.00020513,2]
[314710525,1708536651641,-501.19,0.00020513,2]
[314710526,1708536651650,-888.05,0.00020513,2]
[314710527,1708536651659,-669.84,0.00020513,2]
[314710528,1708536651668,-500.0,0.00020513,2]
[314710529,1708536651677,-1131.23,0.00020513,2]
[314710530,1708536651687,-500.0,0.00020513,2]
[314710531,1708536651696,-500.0,0.00020513,2]
[314710532,1708536651706,-500.0,0.00020513,2]
[314710533,1708536651715,-500.0,0.00020513,2]
[314710534,1708536651725,-1306.59,0.00020513,2]
[314710535,1708536651734,-1641.48,0.00020513,2]
[314710536,1708536651743,-500.0,0.00020513,2]
[314710537,1708536651753,-500.0,0.00020513,2]
[314710538,1708536651762,-7161.62,0.00020513,2]
[314710539,1708536651771,-1051.15,0.00020513,2]
[314710540,1708536651780,-4026.43,0.00020513,2]
[314710541,1708536651790,-5161.09,0.00020513,2]
[314710542,1708536651799,-359.57618202,0.00020513,2]
[314710543,1708536651809,-649.09,0.00020513,2]
[314710544,1708536651818,-3825.46,0.00020513,2]
[314710545,1708536651828,-500.0,0.00020513,2]
[314710546,1708536651837,-532.34141394,0.00020513,2]
[314710547,1708536651847,-687.46,0.00020513,2]
[314710548,1708536651856,-500.0,0.00020513,2]
[314710549,1708536651866,-2247.36,0.00020513,2]
[314710550,1708536651875,-500.0,0.00020513,2]
[314710551,1708536651884,-1581.28,0.00020513,2]
[314710552,1708536651893,-337.77351249,0.00020513,2]
[314710553,1708536651903,-500.0,0.00020513,2]
[314710554,1708536651913,-602.79875198,0.00020513,2]
[314710555,1708536651922,-3151.98,0.00020513,2]
[314710556,1708536651931,-1430.48,0.00020513,2]
[314710557,1708536651940,-500.0,0.00020513,2]
[314710558,1708536651950,-500.0,0.00020513,2]
[314710559,1708536651961,-500.0,0.00020513,2]
[314710560,1708536651970,-729.42,0.00020513,2]
[314710561,1708536651980,-500.0,0.00020513,2]
[314710562,1708536651988,-500.0,0.00020513,2]
[314710563,1708536651998,-500.0,0.00020513,2]
[314710564,1708536652007,-494.22537983,0.00020513,2]
[314710565,1708536652016,-500.0,0.00020513,2]
[314710566,1708536652026,-500.0,0.00020513,2]
[314710567,1708536652035,-2522.35,0.00020513,2]
[314710568,1708536652044,-2489.72,0.00020514,2]
[314710569,1708536652054,-1255.74,0.00020514,2]
[314710570,1708536652063,-534.78,0.00020514,2]
[314710571,1708536652074,-3052.78,0.00020514,2]
[314710572,1708536652084,-500.0,0.00020514,2]
[314710573,1708536652094,-500.0,0.00020514,2]
[314710574,1708536652104,-500.0,0.00020515,2]
[314710575,1708536652114,-500.0,0.00020515,2]
[314710576,1708536652125,-169.56128065,0.00020515,2]
[314710577,1708536652134,-1470.6,0.00020515,2]
[314710578,1708536652144,-500.0,0.00020515,2]
[314710579,1708536652153,-500.0,0.00020515,2]
[314710580,1708536652163,-500.0,0.00020515,2]
[314710581,1708536652173,-500.0,0.00020515,2]
[314710582,1708536652182,-500.0,0.00020515,2]
[314710583,1708536652191,-500.0,0.00020515,2]
[314710584,1708536652201,-500.0,0.00020515,2]
[314710585,1708536652210,-500.0,0.00020515,2]
[314710586,1708536652220,-500.0,0.00020515,2]
[314710587,1708536652230,-500.0,0.00020515,2]
[314710588,1708536652240,-500.0,0.00020515,2]
[314710589,1708536652250,-500.0,0.00020515,2]
[314710590,1708536652259,-500.0,0.00020515,2]
[314710591,1708536652269,-500.0,0.00020515,2]
[314710592,1708536652279,-500.0,0.00020515,2]
[314710593,1708536652290,-670.76,0.00020515,2]
[314710594,1708536652304,-500.0,0.00020515,2]
[314710595,1708536652313,-500.0,0.00020515,2]
[314710596,1708536652322,-500.0,0.00020515,2]
[314710597,1708536652332,-181.17736191,0.00020517,2]
[314710598,1708536652342,-153.0,0.00020521,2]
[314710599,1708536652351,-153.0,0.00020521,2]
[314710600,1708536652360,-4096.90739382,0.00020533,2]
[314710601,1708536652370,-5000.0,0.00020533,2]
[314710602,1708536652379,-5000.0,0.00020533,2]
[314710603,1708536652388,-5000.0,0.00020533,2]
[314710604,1708536652398,-5000.0,0.00020533,2]
[314710605,1708536652408,-5000.0,0.00020533,2]
[314710606,1708536652418,-5000.0,0.00020533,2]
[314710607,1708536652427,-5000.0,0.00020533,2]
[314710608,1708536652437,-5000.0,0.00020533,2]
[314710609,1708536652446,-5000.0,0.00020533,2]
[314710610,1708536652455,-5000.0,0.00020533,2]
[314710611,1708536652465,-5000.0,0.00020533,2]
[314710612,1708536652474,-5000.0,0.00020533,2]
[314710613,1708536652483,-5000.0,0.00020533,2]
[314710614,1708536652491,-5000.0,0.00020533,2]
[314710615,1708536652500,-5000.0,0.00020533,2]
[314710616,1708536652509,-5000.0,0.00020533,2]
[314710617,1708536652518,-5000.0,0.00020533,2]
[314710618,1708536652527,-5000.0,0.00020533,2]
[314710619,1708536652537,-50000.0,0.00020533,2]
[314710620,1708536652545,-5000.0,0.00020533,2]
[314710621,1708536652554,-5000.0,0.00020533,2]
[314710622,1708536652564,-5000.0,0.00020533,2]
[314710623,1708536652573,-5000.0,0.00020533,2]
[314710624,1708536652583,-50000.0,0.00020533,2]
[314710625,1708536652592,-5000.0,0.00020533,2]
[314710626,1708536652601,-5000.0,0.00020533,2]
[314710627,1708536652611,-5000.0,0.00020533,2]
[314710628,1708536652620,-5000.0,0.00020533,2]
[314710629,1708536652629,-5000.0,0.00020533,2]
[314710630,1708536652637,-5000.0,0.00020533,2]
[314710631,1708536652648,-5000.0,0.00020533,2]
[314710632,1708536652657,-5000.0,0.00020533,2]
[314710633,1708536652666,-5000.0,0.00020533,2]
[314710634,1708536652675,-5000.0,0.00020533,2]
[314710635,1708536652685,-5000.0,0.00020533,2]
[314710636,1708536652694,-5000.0,0.00020533,2]
[314710637,1708536652703,-5000.0,0.00020533,2]
[314710638,1708536652712,-5000.0,0.00020533,2]
[314710639,1708536652722,-50000.0,0.00020533,2]
[314710640,1708536652731,-5000.0,0.00020533,2]
[314710641,1708536652740,-5000.0,0.00020533,2]
[314710642,1708536652749,-5000.0,0.00020533,2]
[314710643,1708536652758,-5000.0,0.00020533,2]
[314710644,1708536652767,-5000.0,0.00020533,2]
[314710645,1708536652776,-5000.0,0.00020533,2]
[314710646,1708536652785,-5000.0,0.00020533,2]
[314710647,1708536652794,-5000.0,0.00020533,2]
[314710648,1708536652803,-5000.0,0.00020533,2]
[314710649,1708536652813,-5000.0,0.00020533,2]
[314710650,1708536652822,-5000.0,0.00020533,2]
[314710651,1708536652831,-50000.0,0.00020533,2]
[314710652,1708536652840,-5000.0,0.00020533,2]
[314710653,1708536652850,-5000.0,0.00020533,2]
[314710654,1708536652860,-5000.0,0.00020533,2]
[314710655,1708536652871,-5000.0,0.00020533,2]
[314710656,1708536652880,-5000.0,0.00020533,2]
[314710657,1708536652890,-5000.0,0.00020533,2]
[314710658,1708536652899,-5000.0,0.00020533,2]
[314710659,1708536652908,-5000.0,0.00020533,2]
[314710660,1708536652918,-5000.0,0.00020533,2]
[314710661,1708536652927,-5000.0,0.00020533,2]
[314710662,1708536652937,-5000.0,0.00020533,2]
[314710663,1708536652947,-28733.63649305,0.00020533,2]
[314710664,1708536653075,-59956.61105015,0.00020533,2]
[314710665,1708536653087,-5000.0,0.00020533,2]
[314710666,1708536653096,-5000.0,0.00020533,2]
[314710667,1708536653105,-5000.0,0.00020533,2]
[314710668,1708536653115,-5000.0,0.00020533,2]
[314710669,1708536653125,-5000.0,0.00020533,2]
[314710670,1708536653134,-5000.0,0.00020533,2]
[314710671,1708536653144,-5000.0,0.00020533,2]
[314710672,1708536653154,-5000.0,0.00020533,2]
[314710673,1708536653163,-5000.0,0.00020533,2]
[314710674,1708536653172,-5000.0,0.00020533,2]
[314710675,1708536653182,-5000.0,0.00020533,2]
[314710676,1708536653192,-5000.0,0.00020533,2]
[314710677,1708536653202,-5000.0,0.00020533,2]
[314710678,1708536653212,-5000.0,0.00020533,2]
[314710679,1708536653222,-5000.0,0.00020533,2]
[314710680,1708536653232,-5000.0,0.00020533,2]
[314710681,1708536653241,-5000.0,0.00020533,2]
[314710682,1708536653251,-5000.0,0.00020533,2]
[314710683,1708536653259,-5000.0,0.00020533,2]
[314710684,1708536653269,-50000.0,0.00020533,2]
[314710685,1708536653279,-5000.0,0.00020533,2]
[314710686,1708536653289,-5000.0,0.00020533,2]
[314710687,1708536653300,-5000.0,0.00020533,2]
[314710688,1708536653310,-300.0,0.0002059,2]
[314710689,1708536653319,-153.0,0.00020685,2]
[314710690,1708536653330,-153.0,0.00020685,2]
[314710691,1708536653340,-300.0,0.00020746,2]
[314710692,1708536653349,-10686.02,0.00020786,2]
[314710693,1708536653359,-500.0,0.00020786,2]
[314710694,1708536653368,-649.43,0.00020786,2]
[314710695,1708536653378,-10444.46,0.00020786,2]
[314710696,1708536653387,-500.0,0.00020786,2]
[314710697,1708536653397,-948.19,0.00020786,2]
[314710698,1708536653406,-923.96,0.00020786,2]
[314710699,1708536653416,-1533.4,0.00020786,2]
[314710700,1708536653425,-1202.52,0.00020786,2]
[314710701,1708536653435,-500.0,0.00020786,2]
[314710702,1708536653445,-500.0,0.00020786,2]
[314710703,1708536653454,-155.01105889,0.00020786,2]
[314710704,1708536653464,-500.0,0.00020786,2]
[314710705,1708536653473,-549.21,0.00020786,2]
[314710706,1708536653482,-500.0,0.00020787,2]
[314710707,1708536653491,-500.0,0.00020787,2]
[314710708,1708536653500,-776.27,0.00020787,2]
[314710709,1708536653509,-500.0,0.00020787,2]
[314710710,1708536653519,-501.19,0.00020787,2]
[314710711,1708536653528,-888.05,0.00020787,2]
[314710712,1708536653537,-669.84,0.00020787,2]
[314710713,1708536653547,-500.0,0.00020787,2]
[314710714,1708536653556,-1131.23,0.00020787,2]
[314710715,1708536653565,-500.0,0.00020787,2]
[314710716,1708536653574,-500.0,0.00020787,2]
[314710717,1708536653585,-500.0,0.00020787,2]
[314710718,1708536653594,-500.0,0.00020787,2]
[314710719,1708536653603,-1306.59,0.00020787,2]
[314710720,1708536653612,-1641.48,0.00020787,2]
[314710721,1708536653621,-500.0,0.00020787,2]
[314710722,1708536653630,-7161.62,0.00020787,2]
[314710723,1708536653639,-1051.15,0.00020787,2]
[314710724,1708536653647,-4026.43,0.00020787,2]
[314710725,1708536653656,-5161.09,0.00020787,2]
[314710726,1708536653665,-649.09,0.00020787,2]
[314710727,1708536653674,-3825.46,0.00020787,2]
[314710728,1708536653683,-687.46,0.00020787,2]
[314710729,1708536653692,-262.16049762,0.00020787,2]
[314710730,1708536653701,-2247.36,0.00020787,2]
[314710731,1708536653710,-500.0,0.00020787,2]
[314710732,1708536653848,-1581.28,0.00020787,2]
[314710733,1708536653857,-3151.98,0.00020787,2]
[314710734,1708536653867,-1430.48,0.00020787,2]
[314710735,1708536653876,-500.0,0.00020787,2]
[314710736,1708536653886,-500.0,0.00020787,2]
[314710737,1708536653895,-500.0,0.00020787,2]
[314710738,1708536653904,-729.42,0.00020787,2]
[314710739,1708536653913,-500.0,0.00020787,2]
[314710740,1708536653923,-500.0,0.00020787,2]
[314710741,1708536653932,-270.54325684,0.00020787,2]
[314710742,1708536653941,-500.0,0.00020787,2]
[314710743,1708536653951,-500.0,0.00020787,2]
[314710744,1708536653960,-2522.35,0.00020787,2]
[314710745,1708536653969,-2489.72,0.00020788,2]
[314710746,1708536653978,-1255.74,0.00020788,2]
[314710747,1708536653987,-534.78,0.00020788,2]
[314710748,1708536653997,-3052.78,0.00020788,2]
[314710749,1708536654006,-500.0,0.00020788,2]
[314710750,1708536654016,-500.0,0.00020788,2]
[314710751,1708536654025,-500.0,0.00020789,2]
[314710752,1708536654035,-500.0,0.00020789,2]
[314710753,1708536654045,-1470.6,0.00020789,2]
[314710754,1708536654055,-500.0,0.00020789,2]
[314710755,1708536654064,-500.0,0.00020789,2]
[314710756,1708536654073,-500.0,0.00020789,2]
[314710757,1708536654083,-500.0,0.00020789,2]
[314710758,1708536654093,-500.0,0.00020789,2]
[314710759,1708536654102,-500.0,0.00020789,2]
[314710760,1708536654111,-191.52876453,0.00020789,2]
[314710761,1708536654121,-500.0,0.00020789,2]
[314710762,1708536654131,-670.76,0.00020789,2]
[314710763,1708536654141,-500.0,0.00020789,2]
[314710764,1708536654150,-500.0,0.00020789,2]